fUST/lending_fUST_20250708
["ID","MTS","AMOUNT","RATE_DAILY","PERIOD"]
[370302611,1751943042157,-460.0,0.00019178,2]
[370302613,1751943042167,-473.69015596,0.00019178,2]
[370302615,1751943042176,-460.0,0.00019178,2]
[370302617,1751943042186,-469.14196001,0.00019178,2]
[370302619,1751943042196,-460.0,0.00019178,2]
[370302621,1751943042205,-863.03,0.00019178,2]
[370302623,1751943042215,-460.0,0.00019178,2]
[370302625,1751943042225,-460.0,0.00019178,2]
[370302627,1751943042234,-464.3990144,0.00019178,2]
[370302628,1751943042245,-468.90309277,0.00019178,2]
[370302630,1751943042255,-460.0,0.00019178,2]
[370302632,1751943042264,-460.0,0.00019178,2]
[370302634,1751943042273,-460.0,0.00019178,2]
[370302636,1751943042285,-885.97,0.00019178,2]
[370302638,1751943042299,-460.0,0.00019178,2]
[370302640,1751943042308,-465.33754767,0.00019178,2]
[370302642,1751943042318,-603.01,0.00019178,2]
[370302644,1751943042327,-460.0,0.00019178,2]
[370302647,1751943042337,-460.0,0.00019178,2]
[370302649,1751943042347,-460.0,0.00019178,2]
[370302651,1751943042356,-502.65662961,0.00019178,2]
[370302653,1751943042365,-465.53020129,0.00019178,2]
[370302655,1751943042375,-466.14995152,0.00019178,2]
[370302657,1751943042384,-482.06991162,0.00019178,2]
[370302659,1751943042394,-460.0,0.00019178,2]
[370302661,1751943042404,-1217.38,0.00019178,2]
[370302663,1751943042413,-461.5911961,0.00019178,2]
[370302665,1751943042423,-460.0,0.00019178,2]
[370302667,1751943042432,-460.0,0.00019178,2]
[370302669,1751943042442,-460.0,0.00019178,2]
[370302671,1751943042452,-460.0,0.00019178,2]
[370302673,1751943042462,-460.0,0.00019178,2]
[370302675,1751943042470,-474.21550731,0.00019178,2]
[370302677,1751943042480,-460.0,0.00019178,2]
[370302679,1751943042489,-460.0,0.00019178,2]
[370302681,1751943042499,-460.0,0.00019178,2]
[370302682,1751943042508,-460.0,0.00019178,2]
[370302684,1751943042517,-464.20240415,0.00019178,2]
[370302686,1751943042526,-2453.38,0.00019178,2]
[370302688,1751943042535,-2082.54,0.00019178,2]
[370302690,1751943042544,-468.86944101,0.00019178,2]
[370302692,1751943042553,-460.0,0.00019178,2]
[370302694,1751943042563,-381.15411215,0.00019178,2]
[370302696,1751943042572,-460.0,0.00019178,2]
[370302699,1751943042582,-460.0,0.00019178,2]
[370302700,1751943042591,-483.18887151,0.00019178,2]
[370302703,1751943042601,-460.0,0.00019178,2]
[370302704,1751943042610,-460.06146,0.00019178,2]
[370302707,1751943042620,-460.0,0.00019178,2]
[370302708,1751943042630,-465.63707543,0.00019178,2]
[370302710,1751943042639,-470.49406555,0.00019178,2]
[370302713,1751943042651,-460.0,0.00019178,2]
[370302715,1751943042661,-460.0,0.00019178,2]
[370302717,1751943042670,-473.11,0.00019178,2]
[370302719,1751943042680,-460.0,0.00019178,2]
[370302721,1751943042689,-1132.92,0.00019178,2]
[370302723,1751943042698,-486.72,0.00019178,2]
[370302725,1751943042707,-460.0,0.00019178,2]
[370302727,1751943042717,-2040.75,0.00019178,2]
[370302729,1751943042726,-460.0,0.00019178,2]
[370302731,1751943042735,-460.0,0.00019178,2]
[370302733,1751943042744,-460.0,0.00019178,2]
[370302735,1751943042754,-460.0,0.00019178,2]
[370302737,1751943042763,-460.0,0.00019178,2]
[370302739,1751943042772,-571.5,0.00019178,2]
[370302741,1751943042785,-409.54832024,0.00019178,2]
[370302743,1751943042794,-538.83586744,0.00019178,2]
[370302745,1751943042804,-460.0,0.00019178,2]
[370302747,1751943042813,-243.45060483,0.00019178,2]
[370302749,1751943042822,-461.87179962,0.00019178,2]
[370302751,1751943042831,-2023.27,0.00019178,2]
[370302753,1751943042841,-223.97367562,0.00019178,2]
[370302755,1751943042852,-460.0,0.00019452,2]
[370302757,1751943042861,-337.36157881,0.00019452,2]
[370302759,1751943042870,-460.0,0.00019452,2]
[370302761,1751943042879,-463.39398063,0.00019452,2]
[370302763,1751943042889,-460.0,0.00019452,2]
[370302765,1751943042900,-461.98040274,0.00019452,2]
[370302767,1751943042909,-460.0,0.00019452,2]
[370302769,1751943042919,-460.0,0.00019452,2]
[370302771,1751943042928,-460.0,0.00019452,2]
[370302773,1751943042937,-460.0,0.00019452,2]
[370302775,1751943042946,-460.0,0.00019452,2]
[370302777,1751943042955,-2558.03,0.00019452,2]
[370302779,1751943042965,-404.78582176,0.00019452,2]
[370302781,1751943042974,-460.0,0.00019452,2]
[370302783,1751943042984,-460.0,0.00019452,2]
[370302785,1751943042994,-460.0,0.00019452,2]
[370302787,1751943043003,-460.0,0.00019452,2]
[370302788,1751943043014,-460.0,0.00019452,2]
[370302790,1751943043025,-460.0,0.00019452,2]
[370302792,1751943043034,-460.0,0.00019452,2]
[370302794,1751943043043,-978.73,0.00019452,2]
[370302796,1751943043053,-756.37,0.00019452,2]
[370302798,1751943043062,-320.84391751,0.00019452,2]
[370302800,1751943043073,-917.58,0.00019452,2]
[370302802,1751943043082,-1157.68,0.00019452,2]
[370302804,1751943043092,-460.0,0.00019452,2]
[370302806,1751943043101,-460.0,0.00019452,2]
[370302808,1751943043110,-1590.84,0.00019452,2]
[370302810,1751943043120,-460.0,0.00019452,2]
[370302813,1751943043130,-559.93,0.00019452,2]
[370302814,1751943043140,-460.0,0.00019452,2]
[370302816,1751943043151,-1013.26,0.00019452,2]
[370302818,1751943043161,-1348.5,0.00019452,2]
[370302820,1751943043170,-460.0,0.00019452,2]
[370302822,1751943043179,-460.0,0.00019452,2]
[370302825,1751943043189,-460.0,0.00019452,2]
[370302826,1751943043198,-460.0,0.00019452,2]
[370302828,1751943043208,-460.0,0.00019452,2]
[370302831,1751943043218,-460.0,0.00019452,2]
[370302833,1751943043227,-863.03,0.00019452,2]
[370302835,1751943043236,-460.0,0.00019452,2]
[370302837,1751943043245,-460.0,0.00019452,2]
[370302839,1751943043255,-460.0,0.00019452,2]
[370302840,1751943043264,-477.35381732,0.00019452,2]
[370302842,1751943043273,-885.97,0.00019452,2]
[370302844,1751943043283,-460.0,0.00019452,2]
[370302846,1751943043292,-603.01,0.00019452,2]
[370302848,1751943043301,-460.0,0.00019452,2]
[370302851,1751943043312,-460.0,0.00019452,2]
[370302853,1751943043322,-460.0,0.00019452,2]
[370302855,1751943043331,-1217.38,0.00019452,2]
[370302857,1751943043340,-460.0,0.00019452,2]
[370302859,1751943043349,-470.26296241,0.00019452,2]
[370302861,1751943043358,-460.0,0.00019452,2]
[370302863,1751943043367,-460.0,0.00019452,2]
[370302864,1751943043376,-2453.38,0.00019452,2]
[370302866,1751943043386,-460.0,0.00019452,2]
[370302868,1751943043395,-2082.54,0.00019452,2]
[370302871,1751943043405,-460.0,0.00019452,2]
[370302873,1751943043414,-460.0,0.00019452,2]
[370302875,1751943043424,-473.11,0.00019452,2]
[370302877,1751943043433,-460.0,0.00019452,2]
[370302879,1751943043442,-1132.92,0.00019452,2]
[370302881,1751943043453,-486.72,0.00019452,2]
[370302883,1751943043462,-2040.75,0.00019452,2]
[370302885,1751943043472,-460.0,0.00019452,2]
[370302887,1751943043481,-460.0,0.00019452,2]
[370302889,1751943043491,-571.5,0.00019452,2]
[370302891,1751943043501,-460.0,0.00019452,2]
[370302893,1751943043510,-2023.27,0.00019452,2]
[370302895,1751943043519,-500.0,0.00019507,2]
[370302897,1751943043529,-502.6229025,0.00019507,2]
[370302899,1751943043539,-207.4,0.00019513,2]
[370302901,1751943043548,-230.51100374,0.00019608,2]
[370302903,1751943043558,-443.70691239,0.00019608,2]
[370302916,1751943043670,-5116.39218569,0.00019608,2]
[370302925,1751943043741,-156.33075995,0.00019508,2]
[370302926,1751943043750,-2731.19848247,0.00019608,2]
[370303617,1751943051649,33413.38193506,0.0002,120]
[370303998,1751943129062,2743.0,0.00027397,120]
[370304000,1751943196972,1399.94,0.00025179,120]
[370304005,1751943998128,-153.27044191,0.000189,2]
[370304006,1751944164090,-983.4839907,0.00018174,2]
[370304007,1751944164111,-90.23040831,0.000189,2]
[370304020,1751944231832,-581.49914978,0.000189,2]
[370304022,1751944232345,-646.33146725,0.00019073,2]
[370304023,1751944232355,-300.0,0.00019171,2]
[370304024,1751944232364,-169.0,0.00019171,2]
[370304025,1751944232374,-300.0,0.00019171,2]
[370304026,1751944232383,-1200.0,0.00019171,2]
[370304027,1751944232392,-300.0,0.00019171,2]
[370304028,1751944232403,-500.0,0.00019172,2]
[370304029,1751944232416,-500.0,0.00019172,2]
[370304030,1751944232426,-128.15241097,0.00019172,2]
[370304031,1751944232437,-371.84758903,0.00019172,2]
[370304032,1751944232447,-500.0,0.00019172,2]
[370304033,1751944232457,-168.72881706,0.00019172,2]
[370304034,1751944232466,-591.56315031,0.00019172,2]
[370304035,1751944232476,-500.0,0.00019172,2]
[370304036,1751944232487,-192.77851523,0.00019172,2]
[370304037,1751944232496,-500.0,0.00019172,2]
[370304038,1751944232506,-504.91861386,0.00019172,2]
[370304039,1751944232515,-149.68583008,0.00019172,2]
[370304053,1751944237704,-251.01513462,0.00019171,2]
[370304054,1751944237714,-500.0,0.00019171,2]
[370304055,1751944237726,-500.0,0.00019171,2]
[370304056,1751944237735,-500.0,0.00019171,2]
[370304057,1751944237744,-500.0,0.00019171,2]
[370304058,1751944237754,-500.0,0.00019171,2]
[370304059,1751944237764,-289.19284745,0.00019171,2]
[370304060,1751944237774,-500.0,0.00019171,2]
[370304061,1751944237784,-500.0,0.00019171,2]
[370304062,1751944237794,-500.0,0.00019171,2]
[370304063,1751944237804,-500.0,0.00019171,2]
[370304064,1751944237814,-500.0,0.00019171,2]
[370304065,1751944237824,-500.0,0.00019171,2]
[370304066,1751944237833,-500.0,0.00019171,2]
[370304067,1751944237842,-112.09011613,0.00019171,2]
[370304124,1751944240071,-387.90988387,0.00019171,2]
[370304126,1751944240081,-500.0,0.00019171,2]
[370304128,1751944240090,-500.0,0.00019171,2]
[370304130,1751944240099,-500.0,0.00019171,2]
[370304132,1751944240109,-491.179473,0.00019171,2]
[370304134,1751944240118,-335.40111644,0.00019171,2]
[370304136,1751944240127,-188.01777472,0.00019171,2]
[370304138,1751944240136,-500.0,0.00019171,2]
[370304140,1751944240146,-335.61357579,0.00019171,2]
[370304142,1751944240156,-500.0,0.00019171,2]
[370304143,1751944240165,-500.0,0.00019171,2]
[370304145,1751944240174,-500.0,0.00019171,2]
[370304147,1751944240184,-500.0,0.00019171,2]
[370304149,1751944240195,-500.0,0.00019171,2]
[370304151,1751944240205,-500.0,0.00019171,2]
[370304153,1751944240214,-500.0,0.00019171,2]
[370304155,1751944240223,-500.0,0.00019171,2]
[370304157,1751944240233,-466.58975031,0.00019171,2]
[370304159,1751944240242,-500.0,0.00019171,2]
[370304161,1751944240252,-500.0,0.00019171,2]
[370304163,1751944240262,-500.0,0.00019171,2]
[370304165,1751944240271,-500.0,0.00019171,2]
[370304167,1751944240281,-500.0,0.00019171,2]
[370304169,1751944240291,-500.0,0.00019171,2]
[370304171,1751944240300,-500.0,0.00019171,2]
[370304173,1751944240310,-500.0,0.00019171,2]
[370304175,1751944240319,-500.0,0.00019171,2]
[370304177,1751944240329,-500.0,0.00019171,2]
[370304179,1751944240338,-500.0,0.00019171,2]
[370304181,1751944240348,-500.0,0.00019171,2]
[370304183,1751944240357,-500.0,0.00019171,2]
[370304185,1751944240367,-500.0,0.00019171,2]
[370304187,1751944240376,-280.49152279,0.00019171,2]
[370304188,1751944240385,-1200.0,0.00019172,2]
[370304190,1751944240394,-43185.59777451,0.00019172,2]
[370304192,1751944240407,-383.21276896,0.00019172,2]
[370304209,1751944240562,-1096.08,0.00019172,2]
[370304211,1751944240575,-359.99275684,0.00019172,2]
[370304423,1751944242889,-1016.50314434,0.00019172,2]
[370304729,1751944245835,-3958.61355535,0.00019172,2]
[370304731,1751944245845,-462.71190599,0.00019178,2]
[370304733,1751944245855,-342.38321465,0.00019178,2]
[370304735,1751944245865,-460.0,0.00019178,2]
[370304737,1751944245874,-460.0,0.00019178,2]
[370304739,1751944245883,-465.23385963,0.00019178,2]
[370304741,1751944245892,-460.0,0.00019178,2]
[370304743,1751944245901,-461.87018575,0.00019178,2]
[370304745,1751944245910,-225.88484239,0.00019178,2]
[370304747,1751944245920,-460.0,0.00019178,2]
[370304749,1751944245929,-460.0,0.00019178,2]
[370304751,1751944245938,-460.71378994,0.00019178,2]
[370304753,1751944245947,-601.81174642,0.00019178,2]
[370304755,1751944245956,-460.0,0.00019178,2]
[370304757,1751944245965,-350.16488843,0.00019178,2]
[370304759,1751944245974,-460.0,0.00019178,2]
[370304761,1751944245983,-460.0,0.00019178,2]
[370304763,1751944245992,-460.0,0.00019178,2]
[370304765,1751944246002,-460.0,0.00019178,2]
[370304767,1751944246011,-460.0,0.00019178,2]
[370304769,1751944246021,-460.0,0.00019178,2]
[370304771,1751944246031,-460.0,0.00019178,2]
[370304773,1751944246040,-415.26600955,0.00019178,2]
[370304775,1751944246049,-460.0,0.00019178,2]
[370304777,1751944246060,-460.0,0.00019178,2]
[370304779,1751944246069,-460.0,0.00019178,2]
[370304781,1751944246078,-1678.70643297,0.00019178,2]
[370304784,1751944246090,-685.31356703,0.00019178,2]
[370304786,1751944246100,-460.0,0.00019178,2]
[370304788,1751944246109,-460.0,0.00019178,2]
[370304790,1751944246119,-460.0,0.00019178,2]
[370304792,1751944246128,-460.0,0.00019178,2]
[370304793,1751944246137,-464.93655594,0.00019178,2]
[370304796,1751944246146,-460.0,0.00019178,2]
[370304798,1751944246156,-492.50571675,0.00019178,2]
[370304800,1751944246165,-460.0,0.00019178,2]
[370304802,1751944246174,-466.57339211,0.00019178,2]
[370304804,1751944246184,-460.0,0.00019178,2]
[370304806,1751944246194,-460.0,0.00019178,2]
[370304808,1751944246203,-460.0,0.00019178,2]
[370304810,1751944246213,-33.60563475,0.00019178,2]
[370305236,1751945192103,-153.27487556,0.000189,2]
[370305237,1751945229074,-592.82202937,0.000189,2]
[370305238,1751945229096,-700.03669453,0.00019078,2]
[370305239,1751945229118,-222.14,0.00019168,3]
[370305240,1751945229140,-185.11,0.00019168,3]
[370305241,1751945229161,-555.37,0.00019168,3]
[370305242,1751945229181,-42.59183343,0.00019169,2]
[370305243,1751945303554,566.91,0.00027397,120]
[370305261,1751945431979,-262.60356982,0.000189,2]
[370305272,1751945432498,-285.88615619,0.000189,2]
[370305273,1751945432507,-250.12921592,0.00019078,2]
[370305274,1751945432517,-694.60698821,0.00019078,2]
[370305275,1751945432526,-300.0,0.00019168,2]
[370305276,1751945432536,-300.0,0.00019168,2]
[370305277,1751945432545,-300.0,0.00019168,2]
[370305278,1751945432555,-1200.0,0.00019168,2]
[370305279,1751945432565,-335.6630164,0.00019169,2]
[370305282,1751945437927,-500.0,0.00019168,2]
[370305283,1751945437937,-500.0,0.00019168,2]
[370305284,1751945437949,-262.04553756,0.00019168,2]
[370305285,1751945437961,-500.0,0.00019168,2]
[370305287,1751945437971,-500.0,0.00019168,2]
[370305288,1751945437980,-500.0,0.00019168,2]
[370305289,1751945437990,-439.94850595,0.00019168,2]
[370305290,1751945438000,-165.68660811,0.00019168,2]
[370305291,1751945438011,-500.0,0.00019168,2]
[370305292,1751945438021,-442.06473021,0.00019168,2]
[370305293,1751945438031,-529.1386619,0.00019168,2]
[370305294,1751945438042,-504.59074612,0.00019168,2]
[370305295,1751945438052,-500.0,0.00019168,2]
[370305296,1751945438063,-471.13897363,0.00019168,2]
[370305297,1751945438073,-500.0,0.00019168,2]
[370305298,1751945438083,-500.0,0.00019168,2]
[370305299,1751945438092,-500.0,0.00019168,2]
[370305300,1751945438102,-500.0,0.00019168,2]
[370305301,1751945438114,-430.08628059,0.00019168,2]
[370305302,1751945438125,-500.0,0.00019168,2]
[370305303,1751945438135,-501.61729644,0.00019168,2]
[370305304,1751945438149,-268.25248995,0.00019168,2]
[370305305,1751945438160,-821.74515017,0.00019169,2]
[370305306,1751945438170,-557.51533446,0.00019169,2]
[370305307,1751945438180,-503.03401562,0.00019173,2]
[370305308,1751945438191,-500.0,0.00019173,2]
[370305309,1751945438200,-501.72642096,0.00019173,2]
[370305310,1751945438212,-413.47811494,0.00019173,2]
[370305311,1751945438222,-500.92472945,0.00019173,2]
[370305312,1751945438231,-500.0,0.00019173,2]
[370305313,1751945438241,-348.55409816,0.00019173,2]
[370305314,1751945438250,-500.0,0.00019177,2]
[370305315,1751945438260,-396.34406596,0.00019177,2]
[370305316,1751945438272,-264.36776971,0.00019178,2]
[370305317,1751945438283,-2277.56359333,0.00019178,2]
[370305318,1751945438294,-460.0,0.00019178,2]
[370305319,1751945438303,-460.0,0.00019178,2]
[370305320,1751945438315,-460.0,0.00019178,2]
[370305321,1751945438326,-155.57453672,0.00019178,2]
[370305322,1751945438335,-463.69684699,0.00019178,2]
[370305323,1751945438345,-460.0,0.00019178,2]
[370305324,1751945438356,-461.58157402,0.00019178,2]
[370305325,1751945438366,-460.0,0.00019178,2]
[370305326,1751945438377,-460.0,0.00019178,2]
[370305327,1751945438388,-460.0,0.00019178,2]
[370305328,1751945438397,-460.0,0.00019178,2]
[370305329,1751945438407,-461.64056997,0.00019178,2]
[370305330,1751945438417,-460.0,0.00019178,2]
[370305331,1751945438427,-462.14904799,0.00019178,2]
[370305332,1751945438437,-460.0,0.00019178,2]
[370305333,1751945438446,-460.0,0.00019178,2]
[370305334,1751945438458,-460.0,0.00019178,2]
[370305335,1751945438470,-460.0,0.00019178,2]
[370305336,1751945438480,-465.12929942,0.00019178,2]
[370305337,1751945438490,-460.0,0.00019178,2]
[370305338,1751945438499,-461.56965351,0.00019178,2]
[370305339,1751945438509,-460.0,0.00019178,2]
[370305340,1751945438520,-460.0,0.00019178,2]
[370305341,1751945438531,-460.0,0.00019178,2]
[370305342,1751945438541,-460.0,0.00019178,2]
[370305343,1751945438550,-460.0,0.00019178,2]
[370305344,1751945438561,-463.46767504,0.00019178,2]
[370305345,1751945438570,-151.0,0.00019178,2]
[370305346,1751945438581,-460.0,0.00019178,2]
[370305347,1751945438592,-462.66538521,0.00019178,2]
[370305348,1751945438603,-460.0,0.00019178,2]
[370305349,1751945438613,-461.72932056,0.00019178,2]
[370305350,1751945438623,-460.0,0.00019178,2]
[370305351,1751945438633,-460.0,0.00019178,2]
[370305352,1751945438643,-460.0,0.00019178,2]
[370305353,1751945438653,-460.0,0.00019178,2]
[370305354,1751945438662,-460.90201578,0.00019178,2]
[370305355,1751945438672,-460.0,0.00019178,2]
[370305356,1751945438683,-460.0,0.00019178,2]
[370305357,1751945438692,-463.0367458,0.00019178,2]
[370305358,1751945438703,-460.0,0.00019178,2]
[370305359,1751945438713,-460.6392474,0.00019178,2]
[370305360,1751945438723,-464.73351402,0.00019178,2]
[370305361,1751945438733,-460.0,0.00019178,2]
[370305362,1751945438742,-460.0,0.00019178,2]
[370305363,1751945438752,-460.0,0.00019178,2]
[370305364,1751945438763,-460.0,0.00019178,2]
[370305365,1751945438773,-460.0,0.00019178,2]
[370305366,1751945438783,-470.67613028,0.00019178,2]
[370305367,1751945438794,-460.0,0.00019178,2]
[370305368,1751945438804,-460.0,0.00019178,2]
[370305369,1751945438814,-460.0,0.00019178,2]
[370305370,1751945438826,-460.0,0.00019178,2]
[370305371,1751945438836,-465.23210542,0.00019178,2]
[370305372,1751945438847,-460.0,0.00019178,2]
[370305373,1751945438857,-460.0,0.00019178,2]
[370305374,1751945438868,-460.0,0.00019178,2]
[370305375,1751945438878,-474.44137014,0.00019178,2]
[370305376,1751945438889,-460.0,0.00019178,2]
[370305377,1751945438900,-460.0,0.00019178,2]
[370305378,1751945438911,-463.39772623,0.00019178,2]
[370305379,1751945438924,-460.0,0.00019178,2]
[370305380,1751945438934,-460.0,0.00019178,2]
[370305381,1751945438949,-461.07178806,0.00019178,2]
[370305382,1751945438961,-460.0,0.00019178,2]
[370305383,1751945438974,-460.0,0.00019178,2]
[370305384,1751945438987,-460.0,0.00019178,2]
[370305385,1751945439001,-461.57719044,0.00019178,2]
[370305386,1751945439012,-460.0,0.00019178,2]
[370305387,1751945439023,-463.86031903,0.00019178,2]
[370305388,1751945439035,-462.0030923,0.00019178,2]
[370305389,1751945439047,-460.0,0.00019178,2]
[370305390,1751945439060,-460.0,0.00019178,2]
[370305391,1751945439071,-486.94794498,0.00019178,2]
[370305392,1751945439084,-460.83537968,0.00019178,2]
[370305393,1751945439097,-501.845689,0.00019178,2]
[370305394,1751945439110,-491.10248759,0.00019178,2]
[370305395,1751945439121,-461.3665911,0.00019178,2]
[370305396,1751945439133,-462.91433398,0.00019178,2]
[370305397,1751945439147,-462.32901915,0.00019178,2]
[370305398,1751945439160,-464.51297323,0.00019178,2]
[370305399,1751945439172,-463.28098565,0.00019178,2]
[370305400,1751945439183,-461.97108353,0.00019178,2]
[370305401,1751945439196,-502.36684443,0.00019178,2]
[370305402,1751945439207,-463.50501904,0.00019178,2]
[370305403,1751945439218,-500.32528717,0.00019178,2]
[370305404,1751945439232,-462.49362295,0.00019178,2]
[370305405,1751945439244,-466.55451239,0.00019178,2]
[370305406,1751945439255,-460.0,0.00019178,2]
[370305407,1751945439267,-358.78723592,0.00019178,2]
[370305408,1751945439279,-463.41352239,0.00019178,2]
[370305409,1751945439290,-464.39304832,0.00019178,2]
[370305410,1751945439301,-463.197109,0.00019178,2]
[370305411,1751945439313,-469.75258242,0.00019178,2]
[370305412,1751945439324,-465.91360109,0.00019178,2]
[370305413,1751945439334,-464.26988731,0.00019178,2]
[370305414,1751945439344,-460.0,0.00019178,2]
[370305415,1751945439356,-463.43756629,0.00019178,2]
[370305416,1751945439367,-465.48070349,0.00019178,2]
[370305417,1751945439377,-460.0,0.00019178,2]
[370305418,1751945439388,-500.0,0.00019178,2]
[370305419,1751945439400,-500.0,0.00019178,2]
[370305420,1751945439410,-500.0,0.00019178,2]
[370305421,1751945439423,-500.0,0.00019178,2]
[370305422,1751945439435,-500.0,0.00019178,2]
[370305423,1751945439447,-500.0,0.00019178,2]
[370305424,1751945439461,-463.12385683,0.00019178,2]
[370305425,1751945439473,-468.21707613,0.00019178,2]
[370305426,1751945439485,-464.91998466,0.00019178,2]
[370305427,1751945439497,-460.0,0.00019178,2]
[370305428,1751945439509,-411.58543314,0.00019178,2]
[370305429,1751945439522,-460.0,0.00019178,2]
[370305430,1751945439532,-542.89001501,0.00019178,2]
[370305431,1751945439542,-393.00193791,0.00019178,2]
[370305432,1751945439552,-461.96933029,0.00019178,2]
[370305433,1751945439563,-460.0,0.00019178,2]
[370305434,1751945439575,-460.0,0.00019178,2]
[370305435,1751945439586,-460.0,0.00019178,2]
[370305436,1751945439599,-460.0,0.00019178,2]
[370305437,1751945439612,-460.0,0.00019178,2]
[370305438,1751945439623,-462.47358001,0.00019178,2]
[370305439,1751945439636,-461.51589764,0.00019178,2]
[370305440,1751945439646,-462.1364475,0.00019178,2]
[370305441,1751945439656,-297.65579914,0.00019178,2]
[370305442,1751945439668,-460.0,0.00019178,2]
[370305443,1751945439679,-460.0,0.00019178,2]
[370305444,1751945439691,-501.92053155,0.00019178,2]
[370305445,1751945439702,-460.0,0.00019178,2]
[370305446,1751945439718,-464.20976722,0.00019178,2]
[370305447,1751945439730,-461.49427537,0.00019178,2]
[370305448,1751945439741,-460.97437506,0.00019178,2]
[370305449,1751945439751,-460.0,0.00019178,2]
[370305450,1751945439762,-460.0,0.00019178,2]
[370305451,1751945439772,-212.29246324,0.00019178,2]
[370305453,1751945439783,-424.88526047,0.00019178,2]
[370305454,1751945439794,-465.01927479,0.00019178,2]
[370305455,1751945439804,-462.15330114,0.00019178,2]
[370305456,1751945439817,-205.46985513,0.00019178,2]
[370305457,1751945439828,-255.89135266,0.00019178,2]
[370305459,1751945439839,-460.0,0.00019178,2]
[370305461,1751945439850,-460.0,0.00019178,2]
[370305463,1751945439861,-460.0,0.00019178,2]
[370305464,1751945439871,-461.90054098,0.00019178,2]
[370305465,1751945439883,-464.01134466,0.00019178,2]
[370305466,1751945439895,-502.5262395,0.00019178,2]
[370305467,1751945439906,-460.0,0.00019178,2]
[370305468,1751945439917,-460.0,0.00019178,2]
[370305469,1751945439927,-460.0,0.00019178,2]
[370305470,1751945439938,-460.0,0.00019178,2]
[370305471,1751945439949,-462.61377163,0.00019178,2]
[370305472,1751945439960,-463.0329574,0.00019178,2]
[370305473,1751945439970,-460.79556911,0.00019178,2]
[370305474,1751945439981,-460.0,0.00019178,2]
[370305475,1751945439993,-502.24647311,0.00019178,2]
[370305476,1751945440004,-460.0,0.00019178,2]
[370305477,1751945440014,-460.0,0.00019178,2]
[370305478,1751945440026,-462.84923646,0.00019178,2]
[370305479,1751945440037,-460.0,0.00019178,2]
[370305480,1751945440048,-461.10927771,0.00019178,2]
[370305481,1751945440058,-460.0,0.00019178,2]
[370305482,1751945440069,-460.0,0.00019178,2]
[370305483,1751945440080,-433.72441056,0.00019178,2]
[370305484,1751945440091,-460.0,0.00019178,2]
[370305485,1751945440102,-460.0,0.00019178,2]
[370305486,1751945440113,-460.0,0.00019178,2]
[370305488,1751945440124,-291.07788236,0.00019178,2]
[370305490,1751945440135,-460.0,0.00019178,2]
[370305492,1751945440147,-460.0,0.00019178,2]
[370305494,1751945440158,-460.82852588,0.00019178,2]
[370305495,1751945440168,-463.0903335,0.00019178,2]
[370305497,1751945440179,-460.0,0.00019178,2]
[370305499,1751945440190,-464.33868962,0.00019178,2]
[370305501,1751945440200,-460.0,0.00019178,2]
[370305503,1751945440211,-460.0,0.00019178,2]
[370305504,1751945440222,-460.0,0.00019178,2]
[370305505,1751945440233,-460.0,0.00019178,2]
[370305506,1751945440244,-460.0,0.00019178,2]
[370305507,1751945440255,-460.0,0.00019178,2]